Department family,Entity,Date,Expense type,Expense area,Supplier,Transaction number,Amount,
Department of Health,University Hospitals of Morecambe Bay NHS Foundation Trust,05-Sep-22,Drugs,Pharmacy,Baxter Healthcare Ltd,100363476,"31,243.09",
Department of Health,University Hospitals of Morecambe Bay NHS Foundation Trust,05-Sep-22,Rates,Estates & Facilities,Borough Of Barrow-In-Furness,100364336,"58,027.00",
Department of Health,University Hospitals of Morecambe Bay NHS Foundation Trust,05-Sep-22,Hardware,Information Technology,CAE Technology Services,100363654,"67,336.56",
Department of Health,University Hospitals of Morecambe Bay NHS Foundation Trust,05-Sep-22,Managed Service Contract,Corporate,Carveti Partnership Ltd,100354103,"50,072.67",
Department of Health,University Hospitals of Morecambe Bay NHS Foundation Trust,05-Sep-22,Managed Service Contract,Corporate,Carveti Partnership Ltd,100354119,25056,
Department of Health,University Hospitals of Morecambe Bay NHS Foundation Trust,05-Sep-22,Managed Service Contract,Corporate,Carveti Partnership Ltd,100359199,"25,056.00",
Department of Health,University Hospitals of Morecambe Bay NHS Foundation Trust,05-Sep-22,Managed Service Contract,Corporate,Carveti Partnership Ltd,100359202,"50,072.67",
Department of Health,University Hospitals of Morecambe Bay NHS Foundation Trust,05-Sep-22,Rates,Estates & Facilities,Lancaster City Council,100364325,"50,773.00",
Department of Health,University Hospitals of Morecambe Bay NHS Foundation Trust,05-Sep-22,FP10 Prescriptions,Pharmacy,NHS Business Services Authority,100363639,"72,760.26",
Department of Health,University Hospitals of Morecambe Bay NHS Foundation Trust,05-Sep-22,Maintenance Contract,Radiology,NHS Supply Chain,100350226,"114,192.00",
Department of Health,University Hospitals of Morecambe Bay NHS Foundation Trust,05-Sep-22,Maintenance Contract,Radiology,NHS Supply Chain,100351644,-52985.71,
Department of Health,University Hospitals of Morecambe Bay NHS Foundation Trust,05-Sep-22,Maintenance Contract,Radiology,NHS Supply Chain,100358662,-100566.65,
Department of Health,University Hospitals of Morecambe Bay NHS Foundation Trust,05-Sep-22,NHS Product Sales,Trust Wide,NHS Supply Chain,100363892,"241,522.04",
Department of Health,University Hospitals of Morecambe Bay NHS Foundation Trust,05-Sep-22,"Agency Nurses, Midwives & ODPs",Trust Wide,Retinue Solutions Ltd,100363474,35145.57,
Department of Health,University Hospitals of Morecambe Bay NHS Foundation Trust,05-Sep-22,Gas,Estates & Facilities,SEFE Energy,100364263,"64,392.69",
Department of Health,University Hospitals of Morecambe Bay NHS Foundation Trust,05-Sep-22,Gas,Estates & Facilities,SEFE Energy,100364267,"51,419.35",
Department of Health,University Hospitals of Morecambe Bay NHS Foundation Trust,05-Sep-22,Software System,Information Technology,TOPdesk UK Ltd,100363752,"30,317.76",
Department of Health,University Hospitals of Morecambe Bay NHS Foundation Trust,08-Sep-22,Mobile MRI Scanner,Radiology,Alliance Medical Ltd,100360592,"54,103.62",
Department of Health,University Hospitals of Morecambe Bay NHS Foundation Trust,08-Sep-22,Drugs,Pharmacy,Alloga UK Ltd,100364560,"35,015.33",
Department of Health,University Hospitals of Morecambe Bay NHS Foundation Trust,08-Sep-22,Drugs,Pharmacy,Baxter Healthcare Ltd,100364983,"35,716.41",
Department of Health,University Hospitals of Morecambe Bay NHS Foundation Trust,08-Sep-22,Drugs,Pharmacy,Biotest (UK) Ltd,100365064,"41,090.00",
Department of Health,University Hospitals of Morecambe Bay NHS Foundation Trust,08-Sep-22,Drugs,Pharmacy,Biotest (UK) Ltd,100365165,"41,090.00",
Department of Health,University Hospitals of Morecambe Bay NHS Foundation Trust,08-Sep-22,Managed Service Contract,Corporate,Carveti Partnership Ltd,100364438,50072.67,
Department of Health,University Hospitals of Morecambe Bay NHS Foundation Trust,08-Sep-22,Patient Admin - Managed Service,Information Technology,DH OpCo UK Ltd,100365157,"57,760.69",
Department of Health,University Hospitals of Morecambe Bay NHS Foundation Trust,08-Sep-22,Dictation Service,Medicine,DICT8 LTD,100359890,"31,303.95",
Department of Health,University Hospitals of Morecambe Bay NHS Foundation Trust,08-Sep-22,Laundry,Estates & Facilities,Elis Uk Ltd,100364789,"33,390.00",
Department of Health,University Hospitals of Morecambe Bay NHS Foundation Trust,08-Sep-22,Drugs,Pharmacy,Healthnet Homecare (UK) Limited,100364550,"27,291.45",
Department of Health,University Hospitals of Morecambe Bay NHS Foundation Trust,08-Sep-22,Maintenance Contract,Radiology,NHS Supply Chain,100364277,"36,267.92",
Department of Health,University Hospitals of Morecambe Bay NHS Foundation Trust,08-Sep-22,NHS Product Sales,Trust Wide,NHS Supply Chain,100365044,"213,365.76",
Department of Health,University Hospitals of Morecambe Bay NHS Foundation Trust,08-Sep-22,Payroll Services,Workforce,Northern Care Alliance Nhs Group (NCA),100365046,"35,770.00",
Department of Health,University Hospitals of Morecambe Bay NHS Foundation Trust,08-Sep-22,Agency Medical Staff - Management Costs,Trust Wide,Retinue Solutions Ltd,100363472,58309.01,
Department of Health,University Hospitals of Morecambe Bay NHS Foundation Trust,08-Sep-22,"Agency Nurses, Midwives & ODPs",Trust Wide,Retinue Solutions Ltd,100364946,26434.06,
Department of Health,University Hospitals of Morecambe Bay NHS Foundation Trust,08-Sep-22,"Agency Nurses, Midwives & ODPs",Trust Wide,Retinue Solutions Ltd,100364950,-33788.06,
Department of Health,University Hospitals of Morecambe Bay NHS Foundation Trust,08-Sep-22,"Agency Nurses, Midwives & ODPs",Trust Wide,Retinue Solutions Ltd,100364951,31843.34,
Department of Health,University Hospitals of Morecambe Bay NHS Foundation Trust,08-Sep-22,Agency Medical Staff,Surgery,RMO International Heathcare LLP,100359629,"28,744.32",
Department of Health,University Hospitals of Morecambe Bay NHS Foundation Trust,08-Sep-22,Drugs,Pharmacy,Roche Products Limited,100364759,"30,029.06",
Department of Health,University Hospitals of Morecambe Bay NHS Foundation Trust,08-Sep-22,Drugs,Pharmacy,Sciensus Pharma Services Limited,100365208,33017.11,
Department of Health,University Hospitals of Morecambe Bay NHS Foundation Trust,08-Sep-22,Recharge Specialist Registrars,Trust Wide,St Helens & Knowsley Hospitals Nhs Trust,100365045,"620,000.00",
Department of Health,University Hospitals of Morecambe Bay NHS Foundation Trust,12-Sep-22,Scans & Xray Reporting,Radiology,4Ways Healthcare,100365138,"35,491.41",
Department of Health,University Hospitals of Morecambe Bay NHS Foundation Trust,12-Sep-22,Scans & Xray Reporting,Radiology,4Ways Healthcare,100365152,"75,749.78",
Department of Health,University Hospitals of Morecambe Bay NHS Foundation Trust,12-Sep-22,Drugs,Pharmacy,AAH Pharmaceuticals Ltd,100365680,"215,212.74",
Department of Health,University Hospitals of Morecambe Bay NHS Foundation Trust,12-Sep-22,Transport SLA,Trust Wide,BFW Management Ltd t/a Atlas,100365404,"35,091.00",
Department of Health,University Hospitals of Morecambe Bay NHS Foundation Trust,12-Sep-22,Hardware,Information Technology,Dell Computer Corporation Ltd,100362436,"35,520.00",
Department of Health,University Hospitals of Morecambe Bay NHS Foundation Trust,12-Sep-22,Ambulance Contract (Non NHS),Estates & Facilities,North West Private Ambulance Liaison Services Ltd,100365150,"59,441.20",
Department of Health,University Hospitals of Morecambe Bay NHS Foundation Trust,12-Sep-22,Agency Medical Staff,Surgery,RMO International Heathcare LLP,100364301,"28,744.32",
Department of Health,University Hospitals of Morecambe Bay NHS Foundation Trust,12-Sep-22,Drugs,Pharmacy,Sciensus Pharma Services Limited,100365610,27122.87,
Department of Health,University Hospitals of Morecambe Bay NHS Foundation Trust,12-Sep-22,Drugs,Pharmacy,Sciensus Pharma Services Limited,100365611,35431.78,
Department of Health,University Hospitals of Morecambe Bay NHS Foundation Trust,12-Sep-22,Drugs,Pharmacy,Sciensus Pharma Services Limited,100365612,26327.06,
Department of Health,University Hospitals of Morecambe Bay NHS Foundation Trust,12-Sep-22,Mobile Theatres,Theatres,Vanguard Healthcare Solutions Ltd,100364803,"55,497.20",
Department of Health,University Hospitals of Morecambe Bay NHS Foundation Trust,12-Sep-22,Mobile Theatres,Theatres,Vanguard Healthcare Solutions Ltd,100364870,"45,209.56",
Department of Health,University Hospitals of Morecambe Bay NHS Foundation Trust,12-Sep-22,Building Contractor,Capital Services,W. Hughes & Son Ltd,100357250,"26,424.00",
Department of Health,University Hospitals of Morecambe Bay NHS Foundation Trust,12-Sep-22,Water Charges,Estates & Facilities,Water Plus,100365616,"27,642.21",
Department of Health,University Hospitals of Morecambe Bay NHS Foundation Trust,12-Sep-22,Water Charges,Estates & Facilities,Water Plus,100365617,-27669.05,
Department of Health,University Hospitals of Morecambe Bay NHS Foundation Trust,15-Sep-22,Drugs,Pharmacy,Alloga UK Ltd,100366306,33133.23,
Department of Health,University Hospitals of Morecambe Bay NHS Foundation Trust,15-Sep-22,Drugs,Pharmacy,Baxter Healthcare Ltd,100365838,"48,126.05",
Department of Health,University Hospitals of Morecambe Bay NHS Foundation Trust,15-Sep-22,Drugs,Pharmacy,Baxter Healthcare Ltd,100366310,"46,741.87",
Department of Health,University Hospitals of Morecambe Bay NHS Foundation Trust,15-Sep-22,Maintenance Contract,Sterile Services,Belimed Limited,100365655,"24,345.00",
Department of Health,University Hospitals of Morecambe Bay NHS Foundation Trust,15-Sep-22,Facilities Management,Community,BFW Management Ltd t/a Atlas,100363130,-44956.62,
Department of Health,University Hospitals of Morecambe Bay NHS Foundation Trust,15-Sep-22,Facilities Management,Community,BFW Management Ltd t/a Atlas,100363131,"79,606.00",
Department of Health,University Hospitals of Morecambe Bay NHS Foundation Trust,15-Sep-22,Facilities Management,Community,BFW Management Ltd t/a Atlas,100363145,"79,606.00",
Department of Health,University Hospitals of Morecambe Bay NHS Foundation Trust,15-Sep-22,Hardware,Information Technology,CAE Technology Services,100366130,"55,185.22",
Department of Health,University Hospitals of Morecambe Bay NHS Foundation Trust,15-Sep-22,Drugs,Pharmacy,Healthnet Homecare (UK) Limited,100365625,"31,972.83",
Department of Health,University Hospitals of Morecambe Bay NHS Foundation Trust,15-Sep-22,Drugs,Pharmacy,Janssen-Cilag Ltd,100366328,28615.68,
Department of Health,University Hospitals of Morecambe Bay NHS Foundation Trust,15-Sep-22,Neurosurgery Services,Medicine,Lancashire Teaching Hospitals NHS Foundation Trust,100337862,48545,
Department of Health,University Hospitals of Morecambe Bay NHS Foundation Trust,15-Sep-22,Maintenance Contract,Sterile Services,NHS Supply Chain,100364528,"120,257.68",
Department of Health,University Hospitals of Morecambe Bay NHS Foundation Trust,15-Sep-22,NHS Product Sales,Trust Wide,NHS Supply Chain,100366242,"286,634.08",
Department of Health,University Hospitals of Morecambe Bay NHS Foundation Trust,15-Sep-22,Postal Franking,Estates & Facilities,Pitney Bowes,100366472,"25,128.11",
Department of Health,University Hospitals of Morecambe Bay NHS Foundation Trust,15-Sep-22,"Agency Nurses, Midwives & ODPs",Trust Wide,Retinue Solutions Ltd,100366265,41037.51,
Department of Health,University Hospitals of Morecambe Bay NHS Foundation Trust,15-Sep-22,Drugs,Pharmacy,Roche Products Limited,100366357,"57,369.20",
Department of Health,University Hospitals of Morecambe Bay NHS Foundation Trust,15-Sep-22,Drugs,Pharmacy,Sciensus Pharma Services Limited,100365818,"50,094.92",
Department of Health,University Hospitals of Morecambe Bay NHS Foundation Trust,15-Sep-22,Software ,Information Technology,Sectra Limited,100366118,"31,298.35",
Department of Health,University Hospitals of Morecambe Bay NHS Foundation Trust,16-Sep-22,Managed Service Contract,Corporate,Carveti Partnership Ltd,100364419,25056,
Department of Health,University Hospitals of Morecambe Bay NHS Foundation Trust,16-Sep-22,Gas,Estates & Facilities,Corona Energy Retail 4 Ltd,100366530,"57,152.03",
Department of Health,University Hospitals of Morecambe Bay NHS Foundation Trust,16-Sep-22,Drugs,Pharmacy,Healthnet Homecare (UK) Limited,100366698,"32,301.82",
Department of Health,University Hospitals of Morecambe Bay NHS Foundation Trust,20-Sep-22,Drugs,Pharmacy,Alloga UK Ltd,100366712,"25,203.79",
Department of Health,University Hospitals of Morecambe Bay NHS Foundation Trust,20-Sep-22,CNST Premium,Corporate,NHS Resolution,100366663,"1,131,004.20",
Department of Health,University Hospitals of Morecambe Bay NHS Foundation Trust,20-Sep-22,Electricity Charges,Estates & Facilities,NPower,100366826,"35,468.24",
Department of Health,University Hospitals of Morecambe Bay NHS Foundation Trust,20-Sep-22,Electricity Charges,Estates & Facilities,NPower,100366828,"44,989.57",
Department of Health,University Hospitals of Morecambe Bay NHS Foundation Trust,20-Sep-22,Building Contractor,Capital Services,The James Mercer Group Limited,100366755,"62,047.84",
Department of Health,University Hospitals of Morecambe Bay NHS Foundation Trust,20-Sep-22,Water Charges,Estates & Facilities,Water Plus,100367015,"29,985.24",
Department of Health,University Hospitals of Morecambe Bay NHS Foundation Trust,22-Sep-22,Drugs,Pharmacy,Alloga UK Ltd,100367393,"61,430.51",
Department of Health,University Hospitals of Morecambe Bay NHS Foundation Trust,22-Sep-22,Drugs,Pharmacy,Baxter Healthcare Ltd,100367118,"38,267.24",
Department of Health,University Hospitals of Morecambe Bay NHS Foundation Trust,22-Sep-22,Drugs,Pharmacy,Biotest (UK) Ltd,100367180,"41,090.00",
Department of Health,University Hospitals of Morecambe Bay NHS Foundation Trust,22-Sep-22,Recruitment Services,Workforce,Chester Professional Services Ltd,100367405,"57,240.00",
Department of Health,University Hospitals of Morecambe Bay NHS Foundation Trust,22-Sep-22,Patient Admin - Managed Service,Information Technology,DH OpCo UK Ltd,100367445,"57,760.69",
Department of Health,University Hospitals of Morecambe Bay NHS Foundation Trust,22-Sep-22,Rent & Service Charges,Corporate,HBP Enterprises Ltd,100367058,"45,834.60",
Department of Health,University Hospitals of Morecambe Bay NHS Foundation Trust,22-Sep-22,Building Contractor,Capital Services,Pinington Construction,100367719,"323,036.24",
Department of Health,University Hospitals of Morecambe Bay NHS Foundation Trust,22-Sep-22,Agency Medical Staff - Management Costs,Trust Wide,Retinue Solutions Ltd,100366269,52480.92,
Department of Health,University Hospitals of Morecambe Bay NHS Foundation Trust,22-Sep-22,Drugs,Pharmacy,Sciensus Pharma Services Limited,100367412,"35,484.63",
Department of Health,University Hospitals of Morecambe Bay NHS Foundation Trust,22-Sep-22,Drugs,Pharmacy,Sciensus Pharma Services Limited,100367429,"35,729.81",
Department of Health,University Hospitals of Morecambe Bay NHS Foundation Trust,22-Sep-22,Drugs,Pharmacy,Sciensus Pharma Services Limited,100367446,"38,297.42",
Department of Health,University Hospitals of Morecambe Bay NHS Foundation Trust,26-Sep-22,Drugs,Pharmacy,Biotest (UK) Ltd,100367451,"41,090.00",
Department of Health,University Hospitals of Morecambe Bay NHS Foundation Trust,26-Sep-22,Dictation Service,Medicine,DICT8 LTD,100365722,"30,963.75",
Department of Health,University Hospitals of Morecambe Bay NHS Foundation Trust,26-Sep-22,NHS Product Sales,Trust Wide,NHS Supply Chain,100367694,348205.81,
Department of Health,University Hospitals of Morecambe Bay NHS Foundation Trust,26-Sep-22,"Agency Nurses, Midwives & ODPs",Trust Wide,Retinue Solutions Ltd,100367711,31485.64,
Department of Health,University Hospitals of Morecambe Bay NHS Foundation Trust,29-Sep-22,Drugs,Pharmacy,AAH Pharmaceuticals Ltd,100367739,"93,824.98",
Department of Health,University Hospitals of Morecambe Bay NHS Foundation Trust,29-Sep-22,Drugs,Pharmacy,Bath Asu,100368755,"28,167.84",
Department of Health,University Hospitals of Morecambe Bay NHS Foundation Trust,29-Sep-22,Drugs,Pharmacy,Bath Asu,100368757,"25,351.06",
Department of Health,University Hospitals of Morecambe Bay NHS Foundation Trust,29-Sep-22,Drugs,Pharmacy,Baxter Healthcare Ltd,100368199,"31,307.51",
Department of Health,University Hospitals of Morecambe Bay NHS Foundation Trust,29-Sep-22,Laundry,Estates & Facilities,Elis Uk Ltd,100364878,"43,649.08",
Department of Health,University Hospitals of Morecambe Bay NHS Foundation Trust,29-Sep-22,Recruitment Services,Workforce,Global Select International Ltd,100368872,"38,803.80",
Department of Health,University Hospitals of Morecambe Bay NHS Foundation Trust,29-Sep-22,Drugs,Pharmacy,Healthnet Homecare (UK) Limited,100368023,56889.32,
Department of Health,University Hospitals of Morecambe Bay NHS Foundation Trust,29-Sep-22,Drugs,Pharmacy,Lloyds Pharmacy Clinical Homecare,100368014,"40,062.32",
Department of Health,University Hospitals of Morecambe Bay NHS Foundation Trust,29-Sep-22,Waste Services,Estates & Facilities,Mitie Waste & Environmental Services Ltd,100365634,"43,864.82",
Department of Health,University Hospitals of Morecambe Bay NHS Foundation Trust,29-Sep-22,Electricity Charges,Estates & Facilities,NPower,100368394,"33,949.57",
Department of Health,University Hospitals of Morecambe Bay NHS Foundation Trust,29-Sep-22,Agency Medical Staff - Management Costs,Trust Wide,Retinue Solutions Ltd,100366567,73370.57,
Department of Health,University Hospitals of Morecambe Bay NHS Foundation Trust,29-Sep-22,Agency Medical Staff - Management Costs,Trust Wide,Retinue Solutions Ltd,100368601,22604.95,
Department of Health,University Hospitals of Morecambe Bay NHS Foundation Trust,29-Sep-22,"Agency Nurses, Midwives & ODPs",Trust Wide,Retinue Solutions Ltd,100368608,31667.65,
Department of Health,University Hospitals of Morecambe Bay NHS Foundation Trust,29-Sep-22,Drugs,Pharmacy,Roche Products Limited,100368098,"36,660.00",
Department of Health,University Hospitals of Morecambe Bay NHS Foundation Trust,29-Sep-22,Drugs,Pharmacy,Sciensus Pharma Services Limited,100368017,"31,220.25",
Department of Health,University Hospitals of Morecambe Bay NHS Foundation Trust,29-Sep-22,Gas,Estates & Facilities,SEFE Energy,100368823,"61,099.18",
Department of Health,University Hospitals of Morecambe Bay NHS Foundation Trust,29-Sep-22,Gas,Estates & Facilities,SEFE Energy,100368836,"56,696.37",
Department of Health,University Hospitals of Morecambe Bay NHS Foundation Trust,29-Sep-22,Quality Management System,Sterile Services,SGS United Kingdom Limited,100368224,39600,
Department of Health,University Hospitals of Morecambe Bay NHS Foundation Trust,29-Sep-22,Waiting List (Additional Capacity),Surgery,SpaMedica Ltd,100368559,"29,089.16",
